bitfinex/quotes_ETHUSD_20250114
["timestamp","ask_amount","ask_price","bid_price","bid_amount"]
[1736869907644,0.49752565,3214.2,3213.2,3.11215]
[1736869907833,3.60871565,3214.2,3212.9,3.11235]
[1736869908017,3.11139,3214.0,3212.9,3.11235]
[1736869908339,0.83011757,3213.9,3212.8,3.0]
[1736869908545,0.39415076,3213.8,3212.8,3.0]
[1736869908744,3.11169,3213.7,3212.5,11.94283]
[1736869908919,3.14886144,3213.7,3212.6,3.0]
[1736869910103,0.03717144,3213.7,3212.7,3.11255]
[1736869910344,0.47070266,3213.7,3212.7,3.11255]
[1736869911454,3.58241266,3213.7,3212.6,3.0]
[1736869911820,3.58241266,3213.7,3212.6,6.11272]
[1736869912219,3.11206,3213.3,3212.0,3.0]
[1736869912458,3.11221,3213.2,3212.1,3.11319]
[1736869912660,3.423521,3213.1,3211.8,0.8345]
[1736869913021,0.7925,3212.9,3211.6,0.63806771]
[1736869913221,0.03890557,3212.8,3211.5,3.11376]
[1736869913456,3.11283,3212.6,3211.5,3.11376]
[1736869913627,3.11283,3212.6,3211.6,3.11369]
[1736869913822,0.8325902,3212.7,3211.5,3.0]
[1736869913823,0.4300644,3212.5,3211.5,3.0]
[1736869914136,0.4300644,3212.5,3210.9,0.8345]
[1736869914137,0.0395314,3212.5,3210.9,0.8345]
[1736869914343,0.0395314,3212.5,3211.5,3.11379]
[1736869914731,3.1523814,3212.5,3211.5,3.11379]
[1736869914947,3.90544,3212.4,3211.3,3.11397]
[1736869915148,3.11304,3212.3,3211.4,3.0]
[1736869915346,3.5466723,3212.2,3210.5,0.9917378]
[1736869915548,0.43432355,3212.2,3210.8,3.11448]
[1736869915719,0.7925,3212.4,3211.8,3.11346]
[1736869915923,0.03974237,3212.1,3211.8,3.11346]
[1736869916146,0.03974237,3212.1,3211.0,6.11427]
[1736869916147,3.11199,3213.4,3212.3,3.11303]
[1736869916331,0.03950791,3212.0,3211.4,3.8345]
[1736869916553,0.7925,3212.9,3212.4,3.11291]
[1736869916758,0.7925,3212.9,3211.4,3.8345]
[1736869916976,0.7925,3212.9,3212.2,3.11312]
[1736869917178,0.7925,3212.9,3212.3,3.11294]
[1736869917357,0.7925,3212.9,3212.4,3.11287]
[1736869917554,0.7925,3212.9,3212.5,3.11275]
[1736869917747,0.7925,3212.9,3211.7,3.11361]
[1736869917748,0.7925,3213.3,3212.9,3.11244]
[1736869918882,0.7925,3213.3,3212.3,0.8345]
[1736869918883,0.7925,3213.3,3212.7,3.11261]
[1736869920201,0.7925,3213.3,3211.8,3.11351]
[1736869920493,3.1123,3213.1,3211.7,0.8345]
[1736869920692,3.1123,3213.1,3211.6,11.94365]
[1736869920693,0.8022,3212.9,3212.0,3.11324]
[1736869920898,0.8022,3212.9,3211.3,4.49939058]
[1736869921199,0.8022,3212.9,3211.5,3.0]
[1736869921599,0.8022,3212.9,3212.3,3.11302]
[1736869922105,0.8022,3212.9,3212.1,3.11319]
[1736869922286,0.391456,3212.8,3212.1,3.11319]
[1736869922686,0.391456,3212.8,3211.6,3.0]
[1736869922687,0.8022,3212.9,3212.3,3.11298]
[1736869923000,0.8022,3212.9,3212.1,3.11318]
[1736869923786,0.8022,3212.9,3212.2,3.11312]
[1736869924282,0.8022,3212.9,3211.6,4.34692181]
[1736869924479,0.8022,3213.3,3212.6,3.11264]
[1736869924681,0.8022,3213.3,3212.9,3.11237]
[1736869925092,0.8022,3213.3,3212.6,3.11264]
[1736869925411,0.8022,3213.3,3212.8,3.11247]
[1736869925615,0.8022,3213.3,3212.6,3.1127]
[1736869925908,0.8022,3213.3,3212.2,3.0]
[1736869926109,3.11245,3213.0,3211.4,0.7641]
[1736869926413,0.391465,3212.9,3211.9,3.11338]
[1736869926629,0.46982005,3212.9,3212.0,3.11331]
[1736869926935,0.43091145,3212.9,3212.1,3.11313]
[1736869927536,0.43091145,3212.9,3211.6,3.0]
[1736869927720,0.03944645,3212.9,3212.5,3.1128]
[1736869927909,0.8022,3213.1,3212.6,3.11271]
[1736869928115,0.03832318,3212.8,3212.0,6.11332]
[1736869928311,0.8022,3213.1,3212.6,3.11271]
[1736869928614,0.8022,3213.1,3212.0,3.0]
[1736869929006,0.03828459,3213.0,3212.0,3.0]
[1736869929208,0.03828459,3213.0,3212.6,3.1127]
[1736869929413,0.03828459,3213.0,3212.7,3.1126]
[1736869929596,0.03828459,3213.0,3211.8,0.55]
[1736869929597,0.03828459,3213.0,3212.9,3.11245]
[1736869930218,0.8022,3213.6,3213.3,3.11205]
[1736869930719,0.03857435,3213.5,3213.4,3.11195]
[1736869930908,0.8022,3214.0,3213.4,3.11195]
[1736869931109,0.8022,3214.0,3213.5,3.11184]
[1736869932243,0.8022,3214.0,3213.0,3.0]
[1736869932536,0.8022,3214.0,3213.2,3.11215]
[1736869932935,0.8022,3214.0,3212.7,0.55]
[1736869933136,0.8022,3214.0,3213.1,3.11224]
[1736869933323,0.8022,3214.0,3212.6,10.23245091]
[1736869933525,0.8022,3215.3,3214.5,3.11088]
[1736869933725,0.8022,3215.3,3214.1,0.7641]
[1736869933927,0.8022,3215.3,3214.4,3.11092]
[1736869934143,0.8022,3215.3,3214.1,0.7641]
[1736869934340,1.193422,3215.3,3214.2,3.11119]
[1736869934517,3.10921,3216.3,3215.2,3.11022]
[1736869934717,3.91172,3216.0,3215.0,3.11037]
[1736869934958,3.10907,3216.4,3214.3,3.0]
[1736869934959,0.8022,3215.8,3214.3,3.0]
[1736869935264,0.8022,3215.8,3214.8,3.11057]
[1736869935414,0.8022,3215.8,3214.9,3.1105]
[1736869935616,0.391178,3215.7,3214.6,3.11074]
[1736869936160,0.391178,3215.7,3214.7,3.11071]
[1736869936455,0.391178,3215.7,3214.3,0.23165304]
[1736869936757,3.91185,3215.8,3214.8,3.11059]
[1736869936955,3.10974,3215.7,3214.7,0.23165304]
[1736869937141,0.7705,3215.6,3214.7,0.23165304]
[1736869937359,0.7705,3215.6,3214.9,3.11047]
[1736869937522,0.7705,3215.6,3214.7,3.34235304]
[1736869937725,0.04112019,3215.5,3214.7,0.23165304]
[1736869938131,0.7705,3215.4,3214.7,0.23165304]
[1736869938331,0.7705,3215.1,3214.2,3.11116]
[1736869938742,0.04142818,3215.0,3214.2,3.11116]
[1736869938946,0.04142818,3215.0,3214.1,3.0]
[1736869939259,0.7705,3215.1,3214.7,3.11069]
[1736869939458,0.7705,3215.1,3214.0,3.55]
[1736869939626,0.04125522,3215.0,3214.8,3.11058]
[1736869939819,0.7705,3215.1,3214.0,0.55]
[1736869940022,0.7705,3215.4,3215.0,3.11041]
[1736869940279,0.7705,3215.4,3214.7,3.11063]
[1736869940564,0.7705,3215.4,3214.4,3.0]
[1736869940565,3.11021,3215.3,3214.4,3.0]
[1736869940855,3.53991117,3215.3,3214.4,3.0]
[1736869941161,3.53991117,3215.3,3214.3,3.11106]
[1736869941372,0.42970117,3215.3,3214.2,0.23071049]
[1736869941523,0.04163017,3215.3,3214.5,0.23071049]
[1736869941723,0.7705,3215.4,3214.5,0.23071049]
[1736869941953,0.0416668,3215.2,3214.6,3.11072]
[1736869942155,0.7705,3215.4,3214.7,3.11065]
[1736869942332,0.04162311,3215.1,3214.5,0.23071049]
[1736869942534,0.7705,3215.4,3214.8,3.1106]
[1736869942744,0.04156522,3215.0,3214.8,3.1106]
[1736869942944,0.7705,3215.4,3214.8,3.1106]
[1736869943153,0.04150732,3214.9,3214.8,3.1106]
[1736869943336,0.7705,3215.4,3214.8,3.1106]
[1736869943638,0.04150732,3214.9,3214.8,3.1106]
[1736869943844,0.7705,3215.4,3214.4,0.23071049]
[1736869944027,0.7705,3215.4,3214.6,3.1108]
[1736869944246,0.04173888,3215.3,3214.4,3.34167049]
[1736869944451,0.7705,3215.2,3214.3,0.23071049]
[1736869944829,0.04176054,3215.1,3214.3,0.23071049]
[1736869945140,0.7705,3215.2,3214.4,3.11094]
[1736869945334,0.04202951,3215.0,3214.3,0.23071049]
[1736869945536,3.88079,3215.2,3214.3,0.23071049]
[1736869945736,0.81260621,3214.9,3213.5,4.48677909]
[1736869945946,0.7705,3214.4,3213.5,7.59860909]
[1736869946148,0.7705,3214.4,3213.5,4.48677909]
[1736869946357,0.7705,3214.4,3213.1,3.88526]
[1736869946358,0.7705,3214.4,3214.1,3.11127]
[1736869946526,0.04070164,3214.3,3213.6,3.0]
[1736869946830,0.7705,3214.8,3214.2,3.11119]
[1736869947256,0.04151468,3214.7,3214.2,3.11119]
[1736869947425,0.04151468,3214.7,3213.7,3.88472]
[1736869947643,0.04151468,3214.7,3214.0,3.11137]
[1736869947831,0.7705,3214.8,3213.7,0.7731]
[1736869948166,0.7705,3214.8,3214.0,3.11132]
[1736869948330,0.04038261,3214.7,3214.0,3.11132]
[1736869948727,0.04038261,3214.7,3213.6,0.23058529]
[1736869948728,3.11098,3214.5,3213.6,0.23058529]
[1736869948959,3.499228,3214.4,3213.6,0.23058529]
[1736869949159,0.42961589,3214.4,3213.6,0.23058529]
[1736869949341,3.11122,3214.2,3213.6,0.23058529]
[1736869949540,3.11122,3214.2,3213.3,3.11204]
[1736869949741,0.7705,3214.3,3213.1,3.0]
[1736869949948,0.7705,3214.0,3213.1,3.11224]
[1736869950262,3.88191,3214.0,3212.8,4.48677909]
[1736869950552,0.04020859,3213.9,3212.6,4.48677909]
[1736869950756,0.7705,3213.6,3212.6,3.1127]
[1736869950944,3.1119,3213.5,3212.6,3.1127]
[1736869951146,0.03922817,3213.5,3212.7,3.1126]
[1736869951346,3.15109817,3213.5,3212.6,3.0]
[1736869951596,0.7705,3213.4,3212.1,4.48677909]
[1736869951784,0.81098105,3213.4,3212.1,4.48677909]
[1736869951994,0.7705,3212.9,3211.9,4.48677909]
[1736869952285,3.11269,3212.7,3211.9,4.48677909]
[1736869952448,3.11279,3212.6,3211.9,4.48677909]
[1736869952648,0.03845958,3212.6,3211.7,6.11359]
[1736869952871,0.03845958,3212.6,3211.7,3.0]
[1736869952872,3.15124958,3212.6,3211.7,3.0]
[1736869953053,0.03959438,3212.5,3211.7,6.11358]
[1736869953266,3.15243438,3212.5,3211.4,3.11386]
[1736869953457,0.7705,3212.4,3211.6,3.0]
[1736869953759,0.81009328,3212.4,3211.6,3.0]
[1736869953984,0.81009328,3212.4,3211.2,3.88714]
[1736869954292,3.11313,3212.2,3210.9,0.32521127]
[1736869954464,0.8094022,3212.1,3210.9,0.32521127]
[1736869954667,0.7705,3212.1,3211.5,3.11373]
[1736869954865,0.7705,3212.1,3211.1,3.0]
[1736869955292,0.7705,3212.1,3211.2,3.11409]
[1736869955465,0.03884421,3212.0,3211.2,3.11409]
[1736869955655,3.11354,3211.8,3210.7,3.11449]
[1736869955863,3.15246245,3211.8,3210.7,3.11449]
[1736869956061,3.15246245,3211.8,3210.2,0.7731]
[1736869956062,0.7705,3211.5,3210.6,3.11464]
[1736869956257,0.03791239,3211.4,3210.7,3.11456]
[1736869956491,0.03791239,3211.4,3210.6,3.11467]
[1736869956671,0.03791239,3211.4,3210.4,3.0]
[1736869956868,0.7705,3211.5,3210.7,3.11454]
[1736869957272,0.03684646,3211.4,3210.7,3.11454]
[1736869958908,0.03684646,3211.4,3210.4,3.0]
[1736869959207,0.03684646,3211.4,3210.8,3.11446]
[1736869960182,0.07577162,3211.4,3210.4,1.247678]
[1736869960391,0.07577162,3211.4,3210.1,0.15726659]
[1736869960392,0.7705,3211.5,3210.2,3.0]
[1736869960600,0.03546284,3211.3,3210.7,3.0]
[1736869960775,0.7705,3211.5,3210.7,3.0]
[1736869960974,0.03438657,3211.2,3211.1,3.11419]
[1736869961192,0.7705,3211.5,3211.1,3.11419]
[1736869961403,0.03514367,3211.2,3211.1,3.11419]
[1736869961613,0.7705,3211.5,3211.1,3.11419]
[1736869961803,0.821,3212.5,3211.0,3.0]
[1736869962002,0.821,3212.5,3211.1,4.3322]
[1736869962204,0.821,3213.8,3212.4,3.11293]
[1736869962407,3.93289,3213.5,3212.5,3.11281]
[1736869962606,3.821,3213.5,3211.9,0.7822]
[1736869962769,1.514279,3213.5,3212.6,3.11271]
[1736869962972,1.514279,3213.5,3211.9,0.7822]
[1736869962973,1.514279,3213.5,3212.7,3.11261]
[1736869963192,0.821,3213.5,3212.7,3.11261]
[1736869963509,0.821,3213.5,3212.9,3.11242]
[1736869964408,0.821,3213.5,3212.5,3.0]
[1736869964571,0.821,3213.5,3213.0,3.11226]
[1736869964776,0.821,3213.8,3213.3,3.11201]
[1736869964982,0.821,3213.8,3213.4,3.11187]
[1736869967800,0.821,3213.8,3213.2,3.11214]
[1736869968140,0.821,3213.8,3213.0,3.11233]
[1736869968337,3.1117,3213.7,3212.8,3.27022561]
[1736869968482,3.1117,3213.7,3212.8,0.15771561]
[1736869968839,1.214248,3213.8,3212.8,3.11251]
[1736869969033,1.214248,3213.8,3212.8,3.11247]
[1736869969534,4.325828,3213.8,3212.8,3.11247]
[1736869970083,1.214248,3213.8,3212.7,3.0]
[1736869970399,0.8029,3213.6,3212.7,3.11256]
[1736869970600,0.8029,3213.6,3212.2,3.11311]
[1736869970601,0.8029,3213.6,3212.9,3.1124]
[1736869970778,0.8029,3213.6,3212.6,6.11266]
[1736869971183,0.8029,3213.6,3212.8,3.11253]
[1736869971489,0.8029,3213.6,3212.7,3.0]
[1736869971692,3.11197,3213.4,3212.4,3.11286]
[1736869972217,0.8029,3213.5,3212.5,6.11275]
[1736869972514,3.11201,3213.4,3212.4,3.1129]
[1736869972810,0.8029,3213.0,3211.5,1.39399447]
[1736869973014,0.8029,3213.8,3212.9,3.11245]
[1736869973215,1.194342,3213.8,3212.6,3.0]
[1736869973514,0.8029,3213.8,3213.1,3.11217]
[1736869973817,0.8029,3213.8,3213.0,3.11234]
[1736869973983,0.8029,3213.8,3213.1,3.11224]
[1736869975018,3.72257722,3214.1,3212.7,3.11258]
[1736869975019,0.8029,3213.7,3212.7,3.11262]
[1736869975176,3.91488,3213.4,3212.3,3.11295]
[1736869975380,0.84180373,3213.3,3211.6,4.48978031]
[1736869975610,0.8029,3213.1,3212.2,3.11309]
[1736869975817,0.8029,3213.1,3212.0,3.0]
[1736869975982,0.03297635,3213.0,3212.3,3.11301]
[1736869976184,0.03297635,3213.0,3212.2,3.11309]
[1736869976391,0.03297635,3213.0,3212.0,3.0]
[1736869976722,0.03297635,3213.0,3212.3,3.113]
[1736869977918,0.42778098,3213.0,3212.1,3.1132]
[1736869978093,3.11264,3212.7,3211.8,6.11347]
[1736869978299,0.03890806,3212.9,3211.8,3.11347]
[1736869978300,0.83673948,3212.6,3211.8,3.11347]
[1736869978721,0.83673948,3212.6,3211.5,3.0]
[1736869979223,0.8029,3212.6,3211.8,3.11351]
[1736869979408,0.8029,3212.6,3211.9,3.11333]
[1736869979595,0.8029,3212.6,3211.3,0.7672]
[1736869979802,3.11284,3212.5,3211.6,3.11366]
[1736869979998,0.8029,3212.4,3211.6,3.11366]
[1736869980411,3.11315,3212.2,3211.3,0.23177289]
[1736869980612,0.8146,3211.9,3211.3,0.23177289]
[1736869981022,0.62205067,3211.8,3211.3,0.23177289]
[1736869981227,3.9285,3211.4,3211.3,0.23177289]
[1736869981428,4.32135,3211.4,3211.3,0.23177289]
[1736869981726,4.32135,3211.4,3210.4,3.11481]
[1736869981727,1.23951298,3211.4,3210.4,3.11481]
[1736869982039,0.84666298,3211.4,3210.6,3.11467]
[1736869982236,0.84666298,3211.4,3210.2,3.11507]
[1736869982443,0.84666298,3211.4,3210.1,3.32518046]
[1736869982943,0.84666298,3211.4,3210.5,3.11476]
[1736869983348,4.35662928,3211.4,3210.1,6.44030046]
[1736869983498,0.84666298,3211.4,3210.1,6.44030046]
[1736869984348,3.96059298,3211.4,3210.4,3.11479]
[1736869984647,0.8146,3210.9,3209.6,3.87854]
[1736869984846,0.8146,3210.9,3209.6,0.7629]
[1736869985031,0.8146,3210.9,3209.7,3.11555]
[1736869985234,0.8146,3210.9,3210.1,3.0]
[1736869985235,0.03158593,3210.8,3210.1,3.0]
[1736869986162,0.03158593,3210.8,3209.7,3.0]
[1736869986372,0.8146,3210.9,3210.1,3.11507]
[1736869986571,0.03056308,3210.7,3210.1,3.11507]
[1736869986848,0.8146,3210.9,3210.2,3.11504]
[1736869987036,0.03049266,3210.6,3210.2,3.11504]
[1736869987242,0.85353263,3210.9,3210.0,3.11523]
[1736869987455,0.8146,3210.4,3209.8,0.23162097]
[1736869987766,0.03029922,3210.3,3209.9,3.11535]
[1736869988764,0.8146,3210.4,3209.6,3.0]
[1736869988967,0.8146,3210.4,3210.1,3.11513]
[1736869989251,0.03031851,3210.3,3209.9,3.11528]
[1736869989749,0.03027287,3210.2,3209.9,3.11528]
[1736869990057,0.8146,3210.4,3210.0,3.11524]
[1736869990217,0.8146,3210.4,3210.1,3.11515]
[1736869990414,0.03029922,3210.3,3210.2,3.11507]
[1736869990841,0.8146,3210.4,3210.2,3.11507]
[1736869991243,0.8146,3210.4,3209.8,3.11537]
[1736869991664,0.8146,3210.4,3209.8,3.11536]
[1736869992054,0.03010983,3210.3,3209.8,3.11536]
[1736869992953,0.03010983,3210.3,3209.7,3.0]
[1736869993145,0.03010983,3210.3,3210.0,3.11518]
[1736869993330,0.8146,3210.4,3210.0,3.11518]
[1736869993529,0.0299168,3210.2,3209.7,3.0]
[1736869993763,0.8146,3210.4,3209.7,3.0]
[1736869994054,0.8146,3210.4,3209.9,3.1153]
[1736869994569,0.02999414,3210.3,3209.9,3.1153]
[1736869994720,0.02999414,3210.3,3210.0,3.11525]
[1736869994924,0.8146,3210.4,3209.7,6.11551]
[1736869995150,0.8146,3210.4,3210.0,3.11518]
[1736869995344,0.8146,3210.4,3210.2,3.11505]
[1736869995544,0.02985917,3210.3,3210.1,3.11516]
[1736869995724,0.8146,3210.4,3210.1,3.11516]
[1736869995920,0.8146,3210.4,3209.9,3.11533]
[1736869996163,0.8146,3210.4,3209.6,3.11558]
[1736869996344,0.8111,3210.0,3209.4,3.00372646]
[1736869996531,0.02990007,3209.9,3208.9,1.248247]
[1736869996727,3.11536,3209.9,3209.0,3.11616]
[1736869996924,3.95615092,3209.8,3208.8,3.11633]
[1736869997147,3.95615092,3209.8,3208.9,3.11624]
[1736869997353,0.84069092,3209.8,3209.0,3.11622]
[1736869998739,0.84069092,3209.8,3208.6,3.11662]
[1736869998942,0.8111,3210.2,3209.5,3.11575]
[1736869999145,0.8111,3210.2,3210.0,3.11526]
[1736869999349,0.8111,3210.2,3209.8,3.11542]
[1736869999535,0.02793035,3210.1,3209.8,3.11542]
[1736869999734,0.8111,3210.2,3209.9,3.11532]
[1736870000051,0.02793035,3210.1,3209.7,3.11551]
[1736870000259,0.8111,3210.2,3209.9,3.11531]
[1736870000837,0.8111,3210.2,3209.5,3.0]
[1736870001033,0.8111,3211.0,3209.9,3.11536]
[1736870001236,0.8111,3211.0,3210.6,3.11464]
[1736870001462,0.8111,3211.0,3210.4,3.11482]
[1736870001701,0.02766824,3210.9,3210.4,3.11482]
[1736870001835,0.8111,3211.0,3210.0,6.11523]
[1736870002182,0.02780523,3210.8,3210.0,3.0]
[1736870002338,0.02809375,3210.9,3210.2,3.11497]
[1736870002536,0.02809375,3210.9,3210.3,3.11495]
[1736870003482,3.11459,3210.7,3209.4,3.11578]
[1736870003787,0.02791163,3210.6,3209.9,3.11532]
[1736870003991,3.92559,3210.8,3209.9,3.11532]
[1736870004288,0.02785359,3210.5,3209.9,3.11532]
[1736870004435,0.8111,3210.6,3209.9,3.11532]
[1736870004635,0.02978095,3210.4,3209.9,3.11532]
[1736870005135,0.8111,3210.6,3209.9,3.11532]
[1736870005336,0.8111,3210.2,3209.0,3.11623]
[1736870005533,0.03894126,3210.1,3208.9,3.11624]
[1736870005875,3.92665,3209.7,3208.7,3.11647]
[1736870006171,0.392665,3209.6,3208.7,3.11647]
[1736870006374,0.02929689,3209.5,3208.5,3.0]
[1736870006685,0.8111,3209.4,3208.7,3.0]
[1736870006876,0.8111,3209.4,3209.0,0.23230847]
[1736870007064,0.84034546,3209.4,3209.0,0.23230847]
[1736870007269,0.8111,3209.4,3209.0,0.23230847]
[1736870007940,0.8111,3209.4,3208.9,3.11631]
[1736870009046,0.8111,3209.4,3209.0,3.11621]
[1736870010489,0.8111,3209.9,3209.1,0.23298819]
[1736870010692,0.8111,3211.0,3209.1,3.23298819]
[1736870010872,0.8111,3210.8,3209.6,0.793]
[1736870011183,0.8111,3210.8,3210.4,3.11486]
[1736870011559,0.8111,3210.8,3209.6,0.793]
[1736870011560,0.8111,3210.8,3209.9,3.0]
[1736870011791,0.8111,3210.8,3209.9,3.11532]
[1736870012095,0.8111,3210.8,3209.6,0.793]
[1736870012255,0.8111,3210.8,3210.2,3.11504]
[1736870012663,0.8111,3210.8,3209.7,0.23298819]
[1736870012861,0.8111,3210.8,3210.0,3.11519]
[1736870013076,0.03893436,3210.7,3209.7,3.23298819]
[1736870013386,0.8111,3210.8,3210.0,3.11517]
[1736870013714,0.8111,3210.8,3209.5,3.0]
[1736870013715,3.92559,3210.8,3209.8,3.11543]
[1736870013995,3.92559,3210.8,3210.0,3.11521]
[1736870013996,1.203659,3210.8,3210.0,3.11521]
[1736870014213,1.24259336,3210.8,3209.4,0.62009697]
[1736870014391,0.8111,3210.5,3209.4,3.11584]
[1736870014593,0.8111,3210.5,3209.5,0.23297322]
[1736870015418,0.8111,3210.5,3209.7,3.11551]
[1736870015583,0.8111,3210.5,3209.5,0.23297322]
[1736870015584,0.03893814,3210.4,3209.5,0.23297322]
[1736870015780,3.11543,3209.9,3209.5,0.23297322]
[1736870015971,0.8111,3209.8,3209.5,0.23297322]
[1736870016167,3.15449708,3209.7,3209.6,0.23297322]
[1736870016371,3.11555,3209.7,3209.6,0.23297322]
[1736870017149,3.92665,3209.7,3209.6,0.23297322]
[1736870017291,4.3504693,3209.7,3209.6,0.23297322]
[1736870017796,4.3504693,3209.7,3208.8,0.23297322]
[1736870018429,4.3504693,3209.7,3208.8,3.34939322]
[1736870018630,1.2349193,3209.7,3208.8,3.34939322]
[1736870018806,0.8111,3209.7,3208.8,3.34939322]
[1736870019102,0.8111,3209.7,3208.9,3.11625]
[1736870019325,0.8111,3209.7,3208.8,0.23297322]
[1736870019526,0.8111,3209.7,3208.9,0.23297322]
[1736870020430,0.8111,3209.7,3209.0,0.23297322]
[1736870021132,0.8111,3209.7,3209.3,3.11589]
[1736870021431,0.8111,3210.0,3209.1,0.23297322]
[1736870021594,0.8111,3210.0,3209.6,3.11557]
[1736870021794,0.8111,3210.0,3209.1,3.23297322]
[1736870021998,0.8111,3210.0,3209.2,3.116]
[1736870023143,3.11546,3209.8,3208.8,3.11639]
[1736870023310,3.9264,3210.0,3209.3,0.23292504]
[1736870023499,4.31904,3210.0,3209.3,0.23292504]
[1736870023696,1.20374,3210.0,3209.3,0.23292504]
[1736870024435,0.8111,3210.0,3209.3,0.23292504]
[1736870024637,0.8111,3210.0,3209.2,3.11598]
[1736870025140,3.1149,3210.4,3209.5,3.11573]
[1736870025327,3.1149,3210.4,3209.2,3.11598]
[1736870025328,3.92086,3210.3,3209.3,3.11589]
[1736870025501,1.252886,3210.3,3209.5,3.11571]
[1736870025702,0.8058,3210.3,3209.5,3.11571]
[1736870025925,0.8058,3210.3,3209.0,0.793]
[1736870026137,3.92085,3210.3,3209.0,6.9092]
[1736870026329,3.92085,3210.3,3209.4,3.11583]
[1736870026532,0.8058,3210.3,3209.2,3.11598]
[1736870026720,3.11524,3210.1,3209.2,3.11598]
[1736870026923,3.11524,3210.1,3209.3,0.23297322]
[1736870027124,0.8058,3210.3,3209.3,3.34891322]
[1736870027125,3.92082,3210.3,3209.3,3.34891322]
[1736870027509,0.8058,3210.3,3209.3,3.34891322]
[1736870027837,3.1151,3210.2,3209.3,3.11594]
[1736870027997,0.8058,3210.3,3209.4,3.11583]
[1736870027998,3.92078,3210.3,3209.4,3.11583]
[1736870028201,3.92077,3210.3,3209.4,3.11575]
[1736870028938,0.8058,3210.1,3208.7,0.7738]
[1736870029109,0.8058,3209.7,3208.7,0.7738]
[1736870029309,0.8058,3209.7,3209.1,3.11607]
[1736870029529,0.8058,3209.7,3208.8,3.11642]
[1736870030035,0.8058,3209.7,3209.2,3.11601]
[1736870030623,0.8058,3209.7,3208.9,0.23300177]
[1736870030942,0.8058,3209.5,3208.9,0.23300177]
[1736870031236,3.11606,3209.2,3208.9,0.23300177]
[1736870031422,3.551095,3209.2,3208.9,0.23300177]
[1736870031623,0.39608144,3209.2,3208.9,0.23300177]
[1736870032160,0.39608144,3209.2,3208.5,3.1167]
[1736870032351,0.8058,3209.3,3208.6,3.11661]
[1736870032514,0.8058,3209.3,3208.2,3.11701]
[1736870032840,0.8058,3209.3,3208.6,3.1166]
[1736870033336,6.11577,3209.5,3208.6,3.1166]
[1736870033547,6.11577,3209.5,3208.6,3.11657]
[1736870033715,3.11585,3209.4,3208.4,3.11676]
[1736870033921,0.8058,3209.2,3207.7,3.75766448]
[1736870034218,3.1169,3208.4,3207.7,2.98386448]
[1736870034548,0.8058,3208.3,3207.7,2.98386448]
[1736870035404,3.0,3209.0,3207.7,6.10128448]
[1736870035620,0.8058,3208.9,3208.0,3.11711]
[1736870037320,3.92213,3208.9,3208.0,3.11711]
[1736870037524,0.8058,3208.9,3207.8,3.11736]
[1736870037721,3.8058,3208.9,3207.7,6.10131448]
[1736870037939,3.1165,3208.8,3207.8,3.11738]
[1736870038134,3.5698916,3208.8,3207.8,3.11738]
[1736870038339,3.11662,3208.6,3207.7,2.98386448]
[1736870038623,0.8056,3208.4,3207.7,2.98386448]
[1736870040659,0.8056,3208.4,3207.7,6.10126448]
[1736870041362,0.8056,3208.4,3207.8,3.11736]
[1736870041569,0.8033,3208.9,3208.1,3.11708]
[1736870041737,1.5564046,3208.9,3208.1,3.11708]
[1736870041936,0.8033,3208.9,3208.3,3.1169]
[1736870042140,0.8033,3208.9,3208.2,3.117]
[1736870042455,0.8033,3208.9,3207.8,3.0]
[1736870042650,0.8033,3208.9,3208.1,3.11708]
[1736870043162,0.8033,3208.9,3208.2,3.11691]
[1736870043363,3.11597,3209.3,3207.9,4.17846936]
[1736870043364,0.8033,3209.3,3208.6,3.11653]
[1736870043564,0.8033,3209.3,3208.4,6.93167]
[1736870043740,1.22928972,3209.3,3207.9,0.232701]
[1736870043937,0.8033,3209.3,3208.0,3.11716]
[1736870044128,0.84225849,3209.3,3208.0,3.11716]
[1736870044328,3.95824849,3209.3,3208.0,3.11716]
[1736870044545,0.8033,3208.9,3208.0,3.11716]
[1736870045450,0.8033,3208.9,3207.8,6.93227]
[1736870045657,0.8033,3208.9,3207.5,0.8149]
[1736870045851,1.43179523,3208.9,3207.8,3.11732]
[1736870046173,0.44317952,3208.8,3207.8,3.11732]
[1736870046369,3.55960952,3208.8,3207.9,3.11728]
[1736870046585,3.55960952,3208.8,3207.6,3.11756]
[1736870046586,0.8033,3208.5,3207.6,3.11756]
[1736870046874,0.8033,3208.5,3207.3,0.23288801]
[1736870046875,3.11709,3208.2,3207.3,0.23288801]
[1736870047027,0.8033,3208.5,3207.3,0.23288801]
[1736870047235,0.391998,3208.4,3207.3,0.23288801]
[1736870047453,0.8033,3208.5,3207.3,3.35067801]
[1736870047454,3.11693,3208.3,3207.3,3.35067801]
[1736870047858,3.11693,3208.3,3207.3,3.11779]
[1736870048265,3.11712,3208.1,3207.2,0.8149]
[1736870048470,0.8033,3208.0,3207.0,0.23288801]
[1736870048637,0.8033,3208.0,3207.2,7.06371836]
[1736870048840,0.8033,3208.0,3207.5,3.11768]
[1736870049468,3.94576836,3209.2,3207.0,3.0]
[1736870049469,0.8033,3209.4,3207.7,3.0]
[1736870049646,3.11611,3209.2,3208.2,3.11695]
[1736870049834,0.391907,3209.3,3207.8,0.8149]
[1736870049835,3.11625,3209.0,3207.8,0.8149]
[1736870050039,0.391907,3209.3,3207.8,0.8149]
[1736870050040,0.8033,3208.9,3207.8,0.8149]
[1736870050243,0.8033,3208.9,3207.9,3.1173]
[1736870050542,0.8033,3209.3,3208.5,0.8149]
[1736870050747,0.8033,3209.3,3208.4,3.0]
[1736870050951,0.8033,3209.3,3208.4,6.11674]
[1736870051348,0.8033,3209.3,3208.7,3.11651]